bitfinex-derivatives/quotes_SOLF0:USTF0_20241011
["timestamp","ask_amount","ask_price","bid_price","bid_amount"]
[1728640601931,3.5224,142.04,142.01,3.64812]
[1728640602129,7.58,142.05,142.01,3.64812]
[1728640602327,7.58,142.03,142.01,0.12502]
[1728640602533,7.58,142.02,142.01,0.12502]
[1728640605531,11.1029,142.02,142.01,0.12502]
[1728640607935,7.58,142.02,142.01,0.12502]
[1728640609939,16.1627,142.03,142.01,0.12502]
[1728640617150,12.64,142.03,142.01,0.12502]
[1728640617449,5.06,142.03,142.01,0.12502]
[1728640617846,5.06,142.03,142.02,3.5229]
[1728640618044,5.06,142.03,142.01,0.12502]
[1728640618650,12.64,142.03,142.01,3.64802]
[1728640621754,7.58,142.02,142.01,3.64802]
[1728640623454,5.06,142.03,142.02,3.5229]
[1728640623956,4.0904,142.09,142.01,7.70502]
[1728640624150,7.58,142.06,142.01,7.70502]
[1728640624552,7.58,142.06,142.02,3.5227]
[1728640624748,7.58,142.06,142.01,7.70502]
[1728640625550,11.1019,142.06,142.03,3.5225]
[1728640625747,7.58,142.06,142.01,7.70502]
[1728640625951,5.06,142.07,142.02,7.58]
[1728640626156,12.64,142.07,142.02,7.58]
[1728640627046,16.1617,142.07,142.05,3.5221]
[1728640627246,7.58,142.08,142.03,7.58]
[1728640627458,7.58,142.08,142.03,8.9455]
[1728640627860,7.58,142.08,142.06,3.5217]
[1728640628059,16.1613,142.09,142.06,3.5217]
[1728640628260,12.64,142.09,142.06,3.5218]
[1728640628960,7.58,142.08,142.06,3.5218]
[1728640632958,7.58,142.08,142.03,1.3655]
[1728640633160,7.58,142.05,142.04,3.5222]
[1728640636567,11.1019,142.06,142.04,3.5222]
[1728640637062,3.5215,142.08,142.05,3.522]
[1728640637364,7.58,142.07,142.03,1.3655]
[1728640637556,11.1018,142.07,142.05,3.5221]
[1728640639069,3.5215,142.08,142.05,3.5221]
[1728640639261,7.58,142.07,142.05,3.5221]
[1728640639567,7.58,142.07,142.03,1.3655]
[1728640639769,11.1017,142.07,142.04,3.5222]
[1728640640470,7.58,142.07,142.05,3.522]
[1728640642664,11.1016,142.07,142.05,3.522]
[1728640649368,7.58,142.07,142.05,3.522]
[1728640649566,7.58,142.07,142.04,3.5223]
[1728640650067,7.58,142.06,142.04,3.5223]
[1728640650268,7.58,142.06,142.03,4.888]
[1728640650465,11.1021,142.06,142.03,4.888]
[1728640650665,7.58,142.06,142.03,4.888]
[1728640651070,3.5221,142.05,142.03,4.888]
[1728640651269,7.58,142.06,142.03,4.888]
[1728640651573,11.102,142.06,142.03,1.3655]
[1728640651869,11.102,142.06,142.04,3.5223]
[1728640652167,7.58,142.06,142.01,5.18502]
[1728640652373,7.58,142.03,142.01,0.12502]
[1728640652779,11.1028,142.03,142.01,0.12502]
[1728640654177,3.5223,142.05,142.02,3.5229]
[1728640654568,345.18072,142.13,142.04,7.58]
[1728640654777,11.1013,142.09,142.06,3.5218]
[1728640654966,16.1613,142.09,142.06,3.5218]
[1728640656473,3.5208,142.11,142.07,3.5216]
[1728640656674,0.12502,142.13,142.08,7.58]
[1728640657076,0.12502,142.13,142.1,3.5207]
[1728640657277,7.70502,142.13,142.1,3.5207]
[1728640657880,11.22522,142.13,142.1,3.5207]
[1728640659184,0.12502,142.13,142.11,3.5206]
[1728640659785,0.12502,142.13,142.1,7.58]
[1728640659985,0.12502,142.13,142.12,3.5204]
[1728640660385,0.12502,142.13,142.1,7.58]
[1728640660680,0.12502,142.13,142.11,3.5206]
[1728640661583,11.22522,142.13,142.1,3.5208]
[1728640662888,7.70502,142.13,142.08,12.6]
[1728640663083,0.12502,142.13,142.11,3.5206]
[1728640663385,0.12502,142.13,142.08,12.6]
[1728640663587,0.12502,142.13,142.1,3.5207]
[1728640663885,0.12502,142.13,142.08,12.6]
[1728640664282,0.12502,142.13,142.1,3.5207]
[1728640667688,7.70502,142.13,142.1,3.5207]
[1728640667877,11.22522,142.13,142.1,3.5207]
[1728640668074,7.58,142.11,142.08,3.5213]
[1728640668279,7.58,142.1,142.06,5.02]
[1728640669087,11.1011,142.1,142.07,3.5214]
[1728640670780,11.1011,142.1,142.06,5.02]
[1728640671583,11.1011,142.1,142.07,3.5215]
[1728640671986,11.1011,142.1,142.07,7.58]
[1728640672187,7.58,142.1,142.08,3.5214]
[1728640674084,7.58,142.09,142.07,3.5216]
[1728640675492,11.1012,142.09,142.07,3.5216]
[1728640676094,7.58,142.09,142.07,3.5216]
[1728640676696,11.101,142.1,142.07,3.5216]
[1728640677693,11.101,142.1,142.08,3.5214]
[1728640681301,7.58,142.1,142.08,3.5214]
[1728640681704,11.1008,142.11,142.08,3.5214]
[1728640682497,11.1005,142.12,142.08,7.58]
[1728640682707,7.58,142.12,142.08,7.58]
[1728640682900,7.58,142.12,142.1,3.5209]
[1728640683302,7.58,142.12,142.08,7.58]
[1728640684104,8.66532,142.13,142.08,7.58]
[1728640684105,0.12502,142.13,142.11,3.5206]
[1728640686610,7.70502,142.13,142.11,3.5206]
[1728640687507,11.22522,142.13,142.11,3.5206]
[1728640688304,11.22522,142.13,142.08,7.58]
[1728640688510,11.22522,142.13,142.09,3.5209]
[1728640689003,11.22522,142.13,142.1,3.5208]
[1728640690399,11.1008,142.11,142.08,3.5213]
[1728640693108,11.1007,142.11,142.08,3.5213]
[1728640695212,11.1007,142.11,142.06,12.56]
[1728640695413,7.58,142.11,142.09,3.521]
[1728640697714,3.5205,142.12,142.09,3.521]
[1728640698614,11.22532,142.13,142.1,3.5208]
[1728640699210,3.64532,142.13,142.1,3.5208]
[1728640699510,11.22532,142.13,142.11,3.5206]
[1728640700311,11.22532,142.13,142.09,7.58]
[1728640700520,7.58,142.12,142.1,3.5208]
[1728640702613,7.58,142.12,142.06,4.98]
[1728640702814,11.1007,142.11,142.08,3.5212]
[1728640703417,11.1007,142.11,142.06,12.56]
[1728640703611,11.1007,142.11,142.09,3.5211]
[1728640704313,11.1007,142.11,142.08,3.5213]
[1728640704511,3.5209,142.1,142.06,4.98]
[1728640704916,7.58,142.08,142.04,88.82561697]
[1728640705124,2.85132,142.13,142.04,101.38561697]
[1728640705312,7.58,142.09,142.04,101.38561697]
[1728640705719,7.58,142.09,142.05,3.522]
[1728640706017,7.58,142.09,142.04,101.38561697]
[1728640706412,7.58,142.09,142.07,3.5216]
[1728640707312,11.1012,142.09,142.07,3.5216]
[1728640708319,4.98,142.11,142.07,3.5216]
[1728640708619,4.98,142.11,142.09,3.5211]
[1728640710722,8.5006,142.11,142.08,3.5213]
[1728640711526,4.98,142.11,142.09,3.521]
[1728640711724,11.1005,142.12,142.09,3.521]
[1728640711925,7.58,142.12,142.09,3.521]
[1728640712526,7.58,142.12,142.08,7.58]
[1728640712726,3.5207,142.11,142.08,11.1013]
[1728640713727,3.5207,142.11,142.08,3.5213]
[1728640722230,7.58,142.12,142.06,12.52]
[1728640722231,0.12502,142.13,142.06,4.94]
[1728640722439,0.12502,142.13,142.1,3.5209]
[1728640723138,3.64532,142.13,142.1,3.5209]
[1728640727539,11.22532,142.13,142.1,3.5209]
[1728640729940,3.64532,142.13,142.1,3.5209]
[1728640730141,11.22532,142.13,142.1,3.5209]
[1728640731840,7.70502,142.13,142.1,3.5209]
[1728640732036,3.5206,142.12,142.09,3.5211]
[1728640735235,7.58,142.11,142.06,12.52]
[1728640735435,11.1008,142.11,142.08,3.5212]
[1728640735631,11.1008,142.11,142.06,12.52]
[1728640735842,11.1008,142.11,142.07,3.5215]
[1728640736045,11.1008,142.11,142.06,12.52]
[1728640737043,7.58,142.11,142.06,12.52]
[1728640737240,3.5209,142.1,142.06,4.94]
[1728640737545,3.5209,142.1,142.07,3.5214]
[1728640738140,3.5209,142.1,142.08,3.5213]
[1728640741149,7.58,142.11,142.08,3.5213]
[1728640741349,11.1008,142.11,142.08,3.5213]
[1728640743649,4.94,142.12,142.09,3.5211]
[1728640743843,8.4605,142.12,142.09,3.5211]
[1728640744556,8.4605,142.12,142.1,3.5209]
[1728640745251,8.4605,142.12,142.08,7.58]
[1728640745456,8.4605,142.12,142.09,3.5211]
[1728640746055,4.94,142.12,142.09,3.5211]
[1728640746255,3.5206,142.11,142.09,3.5211]
[1728640747762,8.4605,142.12,142.09,3.5211]
[1728640748056,3.5205,142.12,142.09,3.5211]
[1728640750057,3.5205,142.12,142.07,7.58]
[1728640750362,3.5205,142.12,142.1,3.5209]
[1728640750562,5.06502,142.13,142.1,3.5209]
[1728640750764,8.58532,142.13,142.1,3.5209]
[1728640751571,16.16532,142.13,142.1,3.5209]
[1728640754469,3.5204,142.12,142.1,3.5209]
[1728640766975,16.16522,142.13,142.1,3.5209]
[1728640767175,0.12502,142.13,142.12,3.5204]
[1728640768367,0.12502,142.13,142.12,11.1004]
[1728640769172,0.12502,142.13,142.12,3.5204]
[1728640769679,7.70502,142.13,142.11,3.5206]
[1728640770179,7.70502,142.13,142.1,8.4607]
[1728640770973,11.22532,142.13,142.1,8.4607]
[1728640771381,11.22532,142.13,142.1,3.5207]
[1728640774188,7.70502,142.13,142.11,3.5206]
[1728640775386,7.70502,142.13,142.08,8.9907]
[1728640775588,3.5205,142.12,142.09,3.521]
[1728640777291,11.1005,142.12,142.09,3.521]
[1728640777487,11.1005,142.12,142.1,3.5208]
[1728640778887,7.58,142.12,142.1,3.5208]
[1728640779988,0.12502,142.13,142.1,7.58]
[1728640780186,0.12502,142.13,142.12,3.5204]
[1728640791594,7.70502,142.13,142.12,3.5204]
[1728640791794,7.70502,142.13,142.1,3.5207]
[1728640791995,7.70502,142.13,142.08,11.6307]
[1728640792194,11.22522,142.13,142.08,11.6307]
[1728640793003,11.22522,142.13,142.08,16.5707]
[1728640793494,11.22522,142.13,142.11,3.5206]
[1728640795596,7.70502,142.13,142.11,3.5206]
[1728640796297,0.12502,142.13,142.12,3.5204]
[1728640797496,0.12502,142.13,142.08,8.9907]
[1728640797696,0.12502,142.13,142.11,3.5205]
[1728640799103,3.64522,142.13,142.11,3.5205]
[1728640799303,11.22522,142.13,142.1,3.5208]
[1728640799800,0.12502,142.13,142.1,7.58]
[1728640799998,579.21906,142.17,142.13,3.52]
[1728640800192,575.69966,142.17,142.13,7.58]
[1728640800400,575.69966,142.17,142.12,7.58]
[1728640800596,583.27966,142.17,142.12,7.58]
[1728640800800,575.69966,142.17,142.14,7.58]
[1728640801208,575.69966,142.17,142.15,3.5195]
[1728640801704,579.21886,142.17,142.14,11.0998]
[1728640802507,575.69966,142.17,142.15,3.5195]
[1728640803503,575.69966,142.17,142.16,3.5194]
[1728640805006,575.69966,142.17,142.16,11.0994]
[1728640808304,573.55206,142.17,142.16,11.0994]
[1728640809217,581.13206,142.17,142.09,3.46769907]
[1728640809505,3.52,142.14,142.1,2.7064]
[1728640809809,578.59206,142.17,142.1,7.7464]
[1728640810011,7.58,142.15,142.1,15.3264]
[1728640810610,7.58,142.14,142.1,15.3264]
[1728640811506,11.0999,142.14,142.11,3.5204]
[1728640812010,7.58,142.14,142.1,15.3264]
[1728640812308,11.0998,142.15,142.1,15.3264]
[1728640812912,12.62,142.16,142.11,7.58]
[1728640813501,16.1395,142.16,142.13,3.52]
[1728640816412,5.04,142.16,142.13,7.58]
[1728640816716,573.55206,142.17,142.15,7.58]
[1728640817419,573.55206,142.17,142.16,3.5194]
[1728640818812,573.55206,142.17,142.16,11.0994]
[1728640823111,573.55206,142.17,142.16,3.5194]
[1728640827920,573.55206,142.17,142.13,5.04]
[1728640828107,577.07126,142.17,142.14,11.0997]
[1728640828312,573.55206,142.17,142.15,7.58]
[1728640828809,573.55206,142.17,142.16,7.58]
[1728640829109,573.55206,142.17,142.16,11.0994]
[1728640829306,573.55206,142.17,142.16,16.1194]
[1728640834015,573.55206,142.17,142.16,7.58]
[1728640834214,573.55206,142.17,142.15,7.58]
[1728640835121,573.55206,142.17,142.16,3.5194]
[1728640836922,573.55206,142.17,142.16,11.0994]
[1728640848727,573.55206,142.17,142.16,3.5194]
[1728640848924,573.55206,142.17,142.16,11.0994]
[1728640850723,573.55206,142.17,142.13,5.02]
[1728640850925,573.55206,142.17,142.15,7.58]
[1728640851527,573.55206,142.17,142.13,5.02]
[1728640851528,573.55206,142.17,142.16,7.58]
[1728640852417,573.55206,142.17,142.16,11.0994]
[1728640860232,573.55206,142.17,142.16,16.1594]
[1728640860425,483.20206,142.17,142.16,16.1594]
[1728640863239,392.85206,142.17,142.16,16.1594]
[1728640866231,294.02406,142.17,142.16,16.1594]
[1728640883047,203.67406,142.17,142.16,16.1594]
[1728640883755,199.46864002,142.17,142.16,16.1594]
[1728640884151,199.46864002,142.17,142.16,19.64883104]
[1728640885954,109.11864002,142.17,142.16,19.64883104]
[1728640887754,105.61864002,142.17,142.16,16.1594]
[1728640888150,105.61864002,142.17,142.16,19.64225633]
[1728640888952,11.76864002,142.17,142.16,16.1594]
[1728640889154,11.76864002,142.17,142.16,19.63170222]
[1728640890954,9.96864002,142.17,142.16,16.1594]
[1728640891561,9.96864002,142.17,142.16,19.6010953]
[1728640893868,0.12502,142.19,142.18,3.5189]
[1728640894165,0.12502,142.19,142.18,11.0989]
[1728640897960,0.12502,142.25,142.23,3.5176]
[1728640899055,0.12502,142.25,142.22,3.5178]
[1728640901763,0.12502,142.25,142.22,11.0978]
[1728640902261,0.12502,142.25,142.22,7.58]
[1728640902460,0.12502,142.25,142.23,3.5177]
[1728640903060,7.70502,142.25,142.23,3.5177]
[1728640903261,9.09752,142.25,142.23,3.5177]
[1728640904870,1.51752,142.25,142.23,3.5177]
[1728640905070,1.51752,142.25,142.23,3.5175]
[1728640905371,1.51752,142.25,142.22,7.58]
[1728640906175,1.51752,142.25,142.23,3.5175]
[1728640911876,1.51752,142.25,142.23,11.0975]
[1728640920990,7.58,142.24,142.17,88.74115643]
[1728640921190,7.58,142.22,142.19,3.5186]
[1728640921490,7.58,142.2,142.17,5.0]
[1728640922094,7.58,142.2,142.15,7.58]
[1728640922288,11.0986,142.2,142.15,16.0995]
[1728640923991,7.58,142.2,142.16,3.5193]
[1728640924194,7.58,142.2,142.17,7.58]
[1728640925392,11.0982,142.21,142.17,11.0991]
[1728640925895,7.58,142.21,142.17,11.0991]
[1728640928096,7.58,142.21,142.17,7.58]
[1728640928399,7.58,142.21,142.18,3.5188]
[1728640929892,11.0988,142.19,142.15,3.5195]
[1728640933194,3.5188,142.19,142.14,4.98]
[1728640933500,7.58,142.16,142.13,5.10502]
[1728640934499,11.0993,142.17,142.13,16.20512]
[1728640939801,7.58,142.16,142.13,8.62512]
[1728640943908,11.0995,142.16,142.13,0.12502]
[1728640944303,7.58,142.15,142.13,0.12502]
[1728640944608,7.58,142.15,142.13,3.64512]
[1728640945811,7.58,142.15,142.13,0.12502]
[1728640946814,3.5194,142.16,142.13,0.12502]
[1728640947110,11.0994,142.16,142.13,3.64512]
[1728640948911,11.0994,142.16,142.13,0.12502]
[1728640951006,3.5194,142.16,142.13,0.12502]
[1728640951216,1.3127,142.2,142.13,0.12502]
[1728640951217,1.3127,142.2,142.13,7.70502]
[1728640951513,7.58,142.18,142.13,7.70502]
[1728640951704,7.58,142.18,142.15,3.5196]
[1728640954507,11.099,142.18,142.15,3.5196]
[1728640954706,7.58,142.16,142.15,3.5196]
[1728640955117,7.58,142.16,142.14,3.5198]
[1728640955803,7.58,142.16,142.13,3.64492]
[1728640956011,7.58,142.16,142.13,0.12502]
[1728640956611,7.58,142.16,142.13,3.64502]
[1728640957610,3.5194,142.17,142.14,3.5197]
[1728640958410,7.58,142.16,142.14,3.5197]
[1728640960815,3.5194,142.17,142.14,3.5197]
[1728640961012,8.8927,142.2,142.15,7.58]
[1728640961313,58.80154325,142.22,142.16,7.58]
[1728640961314,62.87180804,142.22,142.16,7.58]
[1728640962114,3.5183,142.21,142.19,3.5186]
[1728640962512,11.098,142.22,142.19,3.5186]
[1728640965020,11.098,142.22,142.19,3.5184]
[1728640965213,7.58,142.22,142.18,7.58]
[1728640965611,7.58,142.22,142.2,3.5182]
[1728640966220,7.58,142.23,142.21,3.518]
[1728640966422,7.70502,142.25,142.2,7.58]
[1728640966610,0.12502,142.25,142.22,7.58]
[1728640966812,0.12502,142.25,142.24,3.5174]
[1728640967710,0.12502,142.25,142.22,7.58]
[1728640967914,0.12502,142.25,142.23,3.5176]
[1728640971423,11.22232,142.25,142.21,8.478]
[1728640972220,11.22232,142.25,142.22,3.5179]
[1728640972419,11.22232,142.25,142.21,4.96]
[1728640973624,11.22232,142.25,142.21,8.478]
[1728640975620,7.58,142.23,142.21,8.478]
[1728640975823,3.64232,142.25,142.21,8.478]
[1728640976030,7.58,142.24,142.21,8.478]
[1728640978424,3.5176,142.24,142.21,4.96]
[1728640978619,7.58,142.24,142.21,4.96]
[1728640979225,7.58,142.24,142.21,8.4781]
[1728640979726,7.58,142.24,142.21,4.96]
[1728640979929,0.12502,142.25,142.21,4.96]
[1728640980237,0.12502,142.25,142.2,7.58]
[1728640980238,7.70502,142.25,142.2,12.54]
[1728640980528,11.22232,142.25,142.21,3.518]
[1728640981119,7.58,142.24,142.21,3.518]
[1728640982719,7.58,142.24,142.2,12.54]
[1728640982921,0.12502,142.25,142.23,7.58]
[1728640983522,0.12502,142.25,142.23,3.5175]
[1728640983822,0.12502,142.25,142.22,7.58]
[1728640984023,0.12502,142.25,142.22,11.0977]
[1728640984229,0.12502,142.25,142.22,7.58]
[1728640985128,0.12502,142.25,142.24,3.5174]
[1728640987325,0.12502,142.25,142.24,11.0974]
[1728640987631,0.12502,142.25,142.24,3.5174]
[1728640987834,7.70502,142.25,142.23,8.4776]
[1728640988037,7.70502,142.25,142.23,4.96]
[1728640989021,7.70502,142.25,142.23,8.4776]
[1728640989238,7.58,142.24,142.22,4.98]
[1728640989835,7.58,142.23,142.19,10.2794]
[1728640990036,7.58,142.23,142.19,15.2594]
[1728640990436,7.58,142.23,142.2,3.5183]
[1728640990735,7.58,142.21,142.14,1.2916]
[1728640991032,7.58,142.21,142.15,12.56]
[1728640991634,11.0982,142.21,142.17,3.519]
[1728640991833,7.58,142.2,142.17,3.519]
[1728640994537,11.0982,142.21,142.17,3.519]
[1728640995241,7.58,142.21,142.15,12.56]
[1728640995839,7.58,142.21,142.17,7.58]
[1728640996138,11.098,142.22,142.18,3.5188]
[1728640999544,3.5178,142.23,142.19,3.5186]
[1728640999744,11.0978,142.23,142.19,3.5186]
[1728641000038,7.58,142.23,142.18,12.56]
[1728641000241,1.3788,142.24,142.2,7.58]
[1728641000632,1.3788,142.24,142.21,3.518]
[1728641000839,3.64242,142.25,142.2,7.58]
[1728641001137,3.5176,142.24,142.21,3.518]
[1728641002437,7.70502,142.25,142.2,7.58]
[1728641002643,0.12502,142.25,142.23,7.58]
[1728641003038,0.12502,142.25,142.22,7.58]
[1728641003437,7.70502,142.25,142.21,12.56]
[1728641003944,7.58,142.23,142.19,2.6978]
[1728641004145,7.58,142.23,142.19,4.98]
[1728641004338,11.0978,142.23,142.2,3.5183]
[1728641005947,0.12502,142.25,142.21,3.518]
[1728641005948,11.0974,142.24,142.21,3.518]
[1728641006547,11.0974,142.24,142.2,3.5183]
[1728641007048,7.70502,142.25,142.2,7.58]
[1728641007243,11.22242,142.25,142.21,7.58]
[1728641007447,0.12502,142.25,142.21,7.58]
[1728641008048,0.12502,142.25,142.22,7.58]
[1728641008753,0.12502,142.25,142.23,3.5175]
[1728641009049,0.12502,142.25,142.22,7.58]
[1728641009448,0.12502,142.25,142.23,3.5175]
[1728641009953,0.12502,142.25,142.24,7.58]
[1728641010154,0.12502,142.25,142.24,11.0974]
[1728641010346,0.12502,142.31,142.24,7.58]
[1728641010541,11.0966,142.28,142.24,8.4972]
[1728641010750,11.0966,142.28,142.24,4.98]
[1728641011151,7.58,142.28,142.24,4.98]
[1728641011355,7.58,142.28,142.25,3.5171]
[1728641011553,11.0963,142.29,142.25,3.5171]
[1728641013062,3.5165,142.28,142.25,3.5171]
[1728641013359,7.58,142.29,142.25,3.5171]
[1728641013561,11.0963,142.29,142.25,3.5171]
[1728641014061,11.0963,142.29,142.26,3.5169]
[1728641014255,7.58,142.29,142.26,3.5169]
[1728641015057,11.0962,142.29,142.26,3.5169]
[1728641015460,7.58,142.3,142.27,3.5165]
[1728641015656,7.58,142.3,142.25,7.58]
[1728641016053,7.58,142.3,142.27,3.5165]
[1728641016963,11.0961,142.3,142.27,3.5165]
[1728641017464,7.58,142.29,142.27,3.5165]
[1728641017865,7.58,142.29,142.23,7.58]
[1728641018064,11.0962,142.29,142.26,3.5168]
[1728641020074,0.12502,142.31,142.25,7.58]
[1728641020275,7.70502,142.31,142.28,3.5163]
[1728641020770,7.70502,142.31,142.27,5.16]
[1728641020964,7.70502,142.31,142.29,3.516]
[1728641021364,0.12502,142.31,142.29,3.516]
[1728641021766,0.12502,142.31,142.27,5.16]
[1728641021767,0.12502,142.31,142.27,12.74]
[1728641021963,0.12502,142.31,142.3,3.5159]
[1728641023368,7.70502,142.31,142.3,3.5159]
[1728641023564,7.70502,142.31,142.27,1.3607]
[1728641023770,7.58,142.29,142.28,3.5163]
[1728641024777,0.12502,142.31,142.27,5.16]
[1728641024778,7.58,142.3,142.27,5.16]
[1728641024966,11.096,142.3,142.27,8.6765]
[1728641026071,0.12502,142.31,142.27,8.6765]
[1728641026267,3.64082,142.31,142.28,3.5163]
[1728641026769,11.22082,142.31,142.28,3.5163]
[1728641027974,3.5162,142.3,142.27,3.5166]
[1728641029567,3.5162,142.3,142.26,12.74]
[1728641029568,7.58,142.3,142.28,3.5164]
[1728641031170,3.64082,142.31,142.29,3.5161]
[1728641031171,0.12502,142.31,142.29,3.5161]
[1728641031372,0.12502,142.31,142.3,7.58]
[1728641031671,0.12502,142.31,142.3,11.0959]
[1728641031875,0.12502,142.31,142.29,5.16]
[1728641032275,0.12502,142.37,142.3,7.58]
[1728641032571,7.58,142.34,142.29,5.16]
[1728641032780,7.58,142.33,142.29,5.16]
[1728641033275,7.58,142.3,142.27,93.83090486]
[1728641033775,7.58,142.3,142.27,97.34750486]
[1728641034573,7.58,142.3,142.27,88.67090486]
[1728641035678,7.58,142.3,142.27,92.18760486]
[1728641036069,3.5157,142.31,142.27,8.6767]
[1728641036271,11.0957,142.31,142.27,8.6767]
[1728641040985,1.3272,142.33,142.25,0.12502]
[1728641040986,7.58,142.28,142.25,0.12502]
[1728641041181,11.0965,142.28,142.25,5.28502]
[1728641041676,11.0963,142.29,142.25,8.80222]
[1728641042381,7.58,142.29,142.25,5.28502]
[1728641042583,3.516,142.3,142.27,3.5166]
[1728641044270,3.516,142.3,142.26,5.16]
[1728641044271,3.5162,142.29,142.26,8.6768]
[1728641044877,3.58306995,142.34,142.27,7.58]
[1728641045180,5.16,142.36,142.28,7.58]
[1728641045380,7.58,142.34,142.3,7.58]
[1728641045786,3.5148,142.35,142.32,3.5154]
[1728641046082,7.58,142.34,142.32,3.5154]
[1728641046583,3.5148,142.35,142.32,3.5154]
[1728641046789,7.58,142.34,142.32,3.5154]
[1728641047389,7.58,142.34,142.3,7.58]
[1728641048389,7.58,142.34,142.31,3.5156]
[1728641049184,3.5148,142.35,142.31,11.0956]
[1728641049388,0.12502,142.37,142.34,7.58]
[1728641049794,0.12502,142.37,142.35,3.5145]
[1728641050190,0.12502,142.37,142.32,1.3973]
[1728641050395,0.12502,142.37,142.32,6.5573]
[1728641050590,7.58,142.35,142.32,6.5573]
[1728641050894,7.70502,142.37,142.32,6.5573]
[1728641051095,11.21942,142.37,142.32,10.0727]
[1728641051396,7.70502,142.37,142.32,5.16]
[1728641051896,7.58,142.36,142.32,5.16]
[1728641052295,11.0945,142.36,142.32,5.16]
[1728641052495,0.12502,142.37,142.34,3.5147]
[1728641052797,0.12502,142.37,142.32,5.16]
[1728641053887,0.12502,142.37,142.34,3.5147]
[1728641054597,0.12502,142.37,142.33,3.5151]
[1728641055401,3.63932,142.37,142.33,3.5151]
[1728641055602,3.63932,142.37,142.32,5.16]
[1728641056603,3.5145,142.36,142.32,8.6754]
[1728641056902,11.94502,142.37,142.3,1.4297]
[1728641057108,11.94502,142.37,142.3,6.9497]
[1728641057310,3.5151,142.34,142.3,6.9497]
[1728641058005,11.94502,142.43,142.32,11.82]
[1728641058499,3.5141,142.38,142.32,13.2187]
[1728641058706,3.5141,142.38,142.33,5.52]
[1728641059097,3.5141,142.38,142.33,9.035]
[1728641059406,11.82,142.42,142.33,5.52]
[1728641059600,11.82,142.42,142.34,3.5148]
[1728641059799,3.5139,142.39,142.34,3.5148]
[1728641060197,3.5139,142.39,142.35,3.5145]
[1728641060497,3.5131,142.42,142.36,5.52]
[1728641060902,3.5131,142.42,142.36,6.8408]
[1728641061607,3.5131,142.42,142.38,3.5139]
[1728641062203,3.63792,142.43,142.38,3.5139]
[1728641062506,3.63792,142.43,142.37,11.82]
[1728641062701,0.12518,142.44,142.42,3.5128]
[1728641063306,0.12518,142.44,142.42,4.9201]
[1728641063806,0.12518,142.44,142.42,6.9273]
[1728641064206,0.12518,142.44,142.42,1.4073]
[1728641064407,0.12518,142.44,142.42,10.4401]
[1728641064799,0.12518,142.44,142.42,4.9201]
[1728641065000,0.12518,142.44,142.42,1.4073]
[1728641065203,3.5128,142.43,142.41,5.52]
[1728641065403,0.12518,142.44,142.38,1.3139]
[1728641065604,0.12518,142.44,142.39,5.52]